Cogmind - Beta 17 @@@ ROGUE MODE // 2026.06.24 @ 16:03:32 Player: TheSkyeDoctor Result: Destroyed by Y-54 Guardian with Gatling Laser Performance ------------- Evolutions (3) 1500 Regions Visited (6) 1200 Robots Destroyed (89) 445 Value Destroyed (2775) 2775 Prototype IDs (0) 0 Alien Tech Used (0) 0 Bonus (416) 416 TOTAL SCORE: 6336 Bonus ------- High Alert Combat Kills 61 Follower Combat Kills 355 Cogmind --------- Core Integrity 0/700 Matter 295/300 Energy 265/265 System Corruption 1% Temperature Cool (12) Movement Rolling (155) Ox5 Location -7/Lower Caves Parts ------- > --- POWER (1) -------- Improved Ion Engine > --- PROPULSION (3) --- Armored Wheel > --- UTILITY (5) ------ High-capacity Storage Unit Improved Signal Interpreter Target Analyzer Heavy Armor Plating > --- WEAPON (4) ------- Heavy Mace > --- INVENTORY (20) --- Medium Treads Cryofiber Web Improved Heat Sink Compact Battery (200) Medium Matter Pod (100) Seismic Detector Target Analyzer Weapon Cycler Powered Armor Hacking Suite System Restoration Module High-powered Tractor Beam Drone Bay (2/2) Axe Peak State ------------ > --- POWER ------------ Improved Deuterium Engine > --- PROPULSION ------- Light Treads Light Treads Medium Treads > --- UTILITY ---------- High-capacity Storage Unit Improved Signal Interpreter Targeting Computer Target Analyzer System Shield > --- WEAPON ----------- Gauss Rifle Advanced Assault Cannon Advanced Assault Cannon Heavy Mace > --- INVENTORY -------- Improved Ion Engine Compact Wheel Armored Wheel Cryofiber Web Improved Heat Sink Compact Battery Medium Matter Pod Seismic Detector Target Analyzer Heavy Armor Plating Hardened Light Armor Plating Hardened Medium Armor Plating Powered Armor System Restoration Module Drone Bay Rocket Launcher Mini Grenade Launcher Axe [Rating: 41] Favorites ----------- Power Ion Engine Engine Ion Engine Power Core Nuclear Core Propulsion Light Treads Treads Light Treads Wheel Compact Wheel Utility Targeting Computer Device Seismic Detector Storage High-capacity Storage Unit Processor Targeting Computer Hackware System Shield Protection Heavy Armor Plating Weapon Heavy Assault Rifle Energy Gun Medium Laser Ballistic Gun Heavy Assault Rifle Ballistic Cannon Assault Cannon Launcher Mini Grenade Launcher Impact Weapon Heavy Mace Build | -11 -10 -9 -8 -8 -7 -7 ------- Run | Yrd Mat Mat Mat Sto Fac Low Slots Evolved 6 | . . 2 2 . 2 . Power . | . . . . . . . Propulsion 1 | . . . . . 1 . Utility 3 | . . . 2 . 1 . Weapon 2 | . . 2 . . . . Parts Attached 51 | 7 1 8 13 2 18 2 Power 5 | 1 . . 1 . 2 1 Engine 4 | 1 . . 1 . 1 1 Core 1 | . . . . . 1 . Reactor . | . . . . . . . Propulsion 13 | 2 . 1 3 . 7 . Treads 10 | 2 . 1 1 . 6 . Leg . | . . . . . . . Wheel 3 | . . . 2 . 1 . Hover . | . . . . . . . Flight . | . . . . . . . Utility 14 | 2 1 1 4 1 4 1 Device 1 | 1 . . . . . . Storage 3 | 1 . 1 . 1 . . Processor 4 | . 1 . 1 . 2 . Hackware 1 | . . . . . 1 . Protection 5 | . . . 3 . 1 1 Artifact . | . . . . . . . Weapon 19 | 2 . 6 5 1 5 . Energy Gun 2 | 1 . . . . 1 . Energy Cannon . | . . . . . . . Ballistic Gun 8 | 1 . 4 1 1 1 . Ballistic Cannon 3 | . . . 1 . 2 . Launcher 4 | . . 2 1 . 1 . Special Weapon . | . . . . . . . Impact Weapon 2 | . . . 2 . . . Slashing Weapon . | . . . . . . . Piercing Weapon . | . . . . . . . Special Melee Weapon . | . . . . . . . Unidentified Prototypes . | . . . . . . . Parts Lost 34 | . . 2 10 1 16 5 Power 3 | . . . 1 . 2 . Propulsion 10 | . . . 4 . 6 . Utility 7 | . . . 3 . 2 2 Weapon 14 | . . 2 2 1 6 3 Highest Loss Streak 10 | . . 1 6 1 10 2 To Critical Strikes 3 | . . . 1 . 2 . Average Backups 12 | 2 4 5 11 16 17 13 Power . | . 1 1 . 2 1 . Propulsion 1 | . 1 1 2 2 2 . Utility 6 | . 1 3 3 6 10 11 Weapon 3 | . 1 . 4 5 3 1 Tool/Special . | . . . . . . . Unused Backups 19 | . . 1 1 2 2 13 Power 1 | . . . . . 1 . Propulsion 3 | . . . . 1 1 1 Utility 12 | . . . . 1 . 11 Weapon 3 | . . 1 1 . . 1 Tool/Special . | . . . . . . . Average Slot Usage (%) 89 | . 100 96 94 90 93 67 Engine 8 | . 14 11 8 9 5 7 Treads 9 | . 28 22 12 . 8 . Wheel 7 | . . . 4 18 11 7 Device 2 | . 4 . 7 . . . Storage 8 | . 14 11 9 9 7 7 Processor 14 | . 9 11 8 9 22 19 Hackware 1 | . . . . . 5 . Protection 4 | . . . 7 9 . 6 Energy Gun 2 | . 14 7 . . . 3 Ballistic Gun 14 | . 14 23 23 18 9 1 Ballistic Cannon 4 | . . . 3 9 9 . Launcher 3 | . . 10 4 . 1 3 Impact Weapon 5 | . . . 4 9 7 7 Peak Build Rating 41 | 7 7 14 26 29 41 32 Average Rating 24 | 5 7 9 20 26 36 26 On Entrance 15 | . 7 7 14 26 29 27 Avg Prop Armor Cover (%) . | . . . . . . . Naked Turns . | . . . . . . . Heaviest Build 81 | 15 15 35 56 76 81 67 Greatest Support 68 | 40 40 40 42 32 68 12 Greatest Overweight (x) 15 | 4 . . 13 2 15 5 Average Overweight (x) 1 | . . . 1 1 1 4 Largest Inventory Capacity 20 | 8 8 15 15 20 20 20 Average Capacity 16 | 7 8 12 15 17 20 20 Most Carried 20 | 3 6 12 15 18 20 15 Average Carried 13 | 2 4 5 11 16 18 13 Final Capacity 20 | 8 8 15 15 20 20 20 Final Carried 17 | 3 6 12 15 17 14 14 Class Distribution -------------------- 54% | Gunner 21% | Mutant 20% | Commander-Gunner Dominant Class ---------------- Mutant | -10/Materials Gunner | -9/Materials Gunner | -8/Materials Gunner | -8/Storage Commander-Gunner | -7/Factory Mutant | -7/Lower Caves Resources | -11 -10 -9 -8 -8 -7 -7 ----------- Run | Yrd Mat Mat Mat Sto Fac Low Matter Collected 2180 | 294 19 205 849 181 359 273 Remotely . | . . . . . . . Salvage Created 2569 | 93 31 472 794 366 689 124 Parts 145 | 5 . 36 40 18 39 7 Haulers Intercepted 1 | . . . . . 1 . Recyclers Shooed . | . . . . . . . Parts Field Recycled . | . . . . . . . Retrieved Matter . | . . . . . . . Parts Self-Destructed 6 | . . . . . . 6 Prevented . | . . . . . . . Parts Restored . | . . . . . . . Kills | -11 -10 -9 -8 -8 -7 -7 ------- Run | Yrd Mat Mat Mat Sto Fac Low Combat Hostiles Destroyed 61 | . 1 14 19 5 16 6 Melee 2 | . . . . . . 2 Guns 36 | . 1 10 16 3 4 2 Cannons 7 | . . . 2 2 3 . AOE 15 | . . 4 1 . 9 1 Classes Destroyed 16 | 2 1 7 1 . 5 . Worker 7 | . . 3 2 . 2 . Builder 8 | . . 1 1 . 6 . Tunneler 1 | 1 . . . . . . Hauler 1 | . . . . . 1 . Recycler 4 | 1 . . . 3 . . Mechanic 1 | . . . . . 1 . Operator 5 | . . 1 1 1 2 . Watcher 1 | . . 1 . . . . Swarmer 15 | . . 4 3 3 2 3 Grunt 25 | . 1 7 12 1 2 2 Brawler 1 | . . 1 . . . . Protector 1 | . . . . . 1 . Sentry 8 | . . 2 3 1 2 . Specialist 2 | . . . . . 2 . Hunter 7 | . . . 1 . 5 1 Programmer 2 | . . . . . 2 . Best Kill Streak 6 | 2 1 5 6 6 6 3 Combat Bots Only 6 | . 1 5 3 5 6 3 Max Kills in Single Turn 4 | 1 1 4 2 1 3 1 Gunslinging 1 | . . . 1 . . . Exploded 2 | . . 1 1 . 2 1 Melee 1 | . . . . . . 1 Uniques/NPCs Destroyed . | . . . . . . . Combat | -11 -10 -9 -8 -8 -7 -7 -------- Run | Yrd Mat Mat Mat Sto Fac Low Hostile Shots Fired 582 | . 4 50 143 14 306 65 Missed 180 | . 2 13 35 3 110 17 Hits 402 | . 2 37 108 11 196 48 Projectile 402 | . 2 37 108 11 196 48 Critical Strikes 10 | . . 1 6 . 2 1 Damage Taken 5755 | . 26 556 1678 123 2590 782 Core 906 | . . 27 162 6 414 297 Absorbed by Shields . | . . . . . . . Core Remaining (%) 90 | 100 100 93 . 69 . . Volleys Fired 144 | 8 3 27 53 12 33 8 Largest 4 | 2 2 4 4 3 3 2 Hottest 138 | 70 70 120 102 93 138 110 Shots Fired 396 | 16 6 86 164 36 78 10 Gun 287 | 16 6 75 128 24 33 5 Cannon 72 | . . . 31 12 29 . Launcher 37 | . . 11 5 . 16 5 Special . | . . . . . . . Kinetic 313 | 8 3 54 159 36 52 1 Thermal 46 | 8 3 21 . . 10 4 Explosive 37 | . . 11 5 . 16 5 Electromagnetic . | . . . . . . . Robot Hit Streak 14 | 3 8 12 14 5 9 11 Robot Miss Streak 9 | 2 . 3 9 3 5 3 Penetration Max 1 | . . . 1 1 1 1 Secondary Targets 5 | . . 1 3 . 1 . Max Gunslinging Chain 1 | . . 1 1 . 1 . Shots Hit Robots 242 | 10 6 49 85 18 61 13 Core Hits 147 | 3 2 29 43 12 51 7 Critical Kills 1 | . . . . . 1 . Critical Parts Destroyed 8 | . . . . . 4 4 Critical Strikes 12 | . . 1 . . 7 4 Burn 1 | . . 1 . . . . Destroy 3 | . . . . . 2 1 Blast 1 | . . . . . 1 . Smash 7 | . . . . . 4 3 Melee Attacks 34 | . . . 6 7 13 8 Impact 34 | . . . 6 7 13 8 Slashing . | . . . . . . . Piercing . | . . . . . . . Sneak Attacks 9 | . . . . 2 7 . Combat Hostiles . | . . . . . . . Follow-up Attacks . | . . . . . . . Damage Inflicted 8048 | 136 78 1421 1847 553 3200 813 Guns 2763 | 136 78 615 1125 187 523 99 Cannons 835 | . . . 307 134 394 . Explosions 3018 | . . 806 383 . 1352 477 Melee 1432 | . . . 32 232 931 237 Ramming . | . . . . . . . Kinetic 2986 | 60 40 402 1432 321 695 36 Thermal 827 | 76 38 384 . . 266 63 Explosive 2803 | . . 635 383 . 1308 477 Electromagnetic . | . . . . . . . Impact 1432 | . . . 32 232 931 237 Slashing . | . . . . . . . Piercing . | . . . . . . . Highest Corruption 2 | . . . . 2 1 1 Average Corruption 1 | . . . . 1 1 1 Corruption Purged . | . . . . . . . Corruption Blocked . | . . . . . . . Effects 20 | . . . . 11 2 7 Message Errors 6 | . . . . 5 . 1 Matter Fused 3 | . . . . . 1 2 Heat Flow Errors 3 | . . . . 3 . . Energy Discharges 3 | . . . . 2 1 . Data Loss (minor) 3 | . . . . 1 . 2 Data Loss (major) 2 | . . . . . . 2 Overload Shots . | . . . . . . . Overflow Damage 689 | . . 48 1 . 505 135 Projectiles 23 | . . . . . 23 . Explosions 105 | . . 48 1 . 51 5 Melee 561 | . . . . . 431 130 Knockbacks 10 | . . . 1 2 6 1 Impact 5 | . . . . . 4 1 Kinetic 4 | . . . 1 2 1 . Secondary 1 | . . . . . 1 . Self-Inflicted Damage 384 | . . 100 . . 217 67 Shots 13 | . . 4 . . 6 3 Rammed . | . . . . . . . Targets Rammed . | . . . . . . . Kicked . | . . . . . . . Crushed . | . . . . . . . Highest Temperature 347 | 72 33 236 347 211 177 107 Average Temperature 61 | 37 18 70 74 67 40 47 Received Heat Transfer 1704 | . 15 159 810 27 408 285 Effects 2 | . . 2 . . . . Interference 2 | . . 2 . . . . Siege Activations . | . . . . . . . Martial Activations . | . . . . . . . Shielding Activations . | . . . . . . . Robots Disrupted . | . . . . . . . Combat Hostiles . | . . . . . . . Robots Corrupted 5 | . . . . . 4 1 Combat Hostiles 1 | . . . . . . 1 Parts Fried 8 | . . . . . 8 . Impact Corruptions 19 | . . . . . 16 3 Robots Melted . | . . . . . . . Combat Hostiles . | . . . . . . . Parts Melted 2 | . . 1 . . 1 . Heat Transferred 1861 | 222 111 853 . . 525 150 Parts Sabotaged . | . . . . . . . Parts Stolen . | . . . . . . . Parts Stripped . | . . . . . . . Power Chain Reactions . | . . . . . . . Alert | -11 -10 -9 -8 -8 -7 -7 ------- Run | Yrd Mat Mat Mat Sto Fac Low Maximum Alert Level 2 | . . 1 . . 2 . Low Security (%) 78 | 100 100 67 100 100 45 . Level 1 17 | . . 32 . . 40 . Level 2 4 | . . . . . 13 . Level 3 . | . . . . . . . Level 4 . | . . . . . . . Level 5 . | . . . . . . . High Security . | . . . . . . . Max Security . | . . . . . . . Peak Influence 500 | 10 25 333 181 124 500 . Initial 126 | . . . 126 65 41 . Average 117 | . 4 169 93 33 183 . Influence Increases 2659 | 10 35 557 586 234 1087 150 Destroy 0b10 Robot/C 1400 | . 20 280 380 100 500 120 Destroy 0b10 Robot/NC 160 | 10 . 30 20 20 80 . Destroy Leader 316 | . . 72 80 20 114 30 Allied During Kill 185 | . . . . . 185 . Successful Hack 90 | . . . . 14 76 . Disable Machine 195 | . . 75 30 30 60 . Destroy Structure 223 | . . 100 61 5 57 . Lose Combat Pursuer 90 | . 15 . 15 45 15 . Influence Decreases 2638 | 10 35 256 733 296 700 608 Entered New Map 493 | . . . 175 89 51 178 Time Decay 1645 | 10 35 236 458 197 329 380 Lost Part 340 | . . 20 100 10 160 50 Lost Ally 160 | . . . . . 160 . Squads Dispatched 12 | . . 1 3 1 7 . Investigation . | . . . . . . . Extermination 2 | . . . . . 2 . Reinforcement 10 | . . 1 3 1 5 . Assault . | . . . . . . . Garrison . | . . . . . . . Intercept . | . . . . . . . Searches Triggered . | . . . . . . . Construction Impeded 1 | . . . . . 1 . Haulers Reinforced 2 | . . . . . 2 . Active Scanning Responses . | . . . . . . . Cargo Convoy Interrupts 1 | . . . . . 1 . Stealth | -11 -10 -9 -8 -8 -7 -7 --------- Run | Yrd Mat Mat Mat Sto Fac Low Distress Signals 4 | . . . 2 . 2 . Communications Jammed . | . . . . . . . Distress Signals . | . . . . . . . Times Spotted 108 | . 2 19 32 9 38 8 Peak Tracking Total 12 | . 2 5 6 3 12 3 Tactical Retreats 5 | . 1 . 1 2 1 . Traps | -11 -10 -9 -8 -8 -7 -7 ------- Run | Yrd Mat Mat Mat Sto Fac Low Traps Triggered 2 | . . . . 2 . . Indirectly . | . . . . . . . Trap Hack Attempts . | . . . . . . . Triggered . | . . . . . . . Disarmed . | . . . . . . . Reprogrammed . | . . . . . . . Reused . | . . . . . . . Traps Extracted . | . . . . . . . Installed . | . . . . . . . Triggered . | . . . . . . . Objects Rigged 3 | . . . . . 3 . Machines | -11 -10 -9 -8 -8 -7 -7 ---------- Run | Yrd Mat Mat Mat Sto Fac Low Machines Disabled 13 | . . 5 2 2 4 . Max in Single Turn 3 | . . 2 1 1 3 . Garrison Access 3 | . . . 1 1 1 . Machines Repaired . | . . . . . . . Machines Dismantled . | . . . . . . . Machines Sabotaged . | . . . . . . . Overloaded Fab Kills . | . . . . . . . Hacking | -11 -10 -9 -8 -8 -7 -7 --------- Run | Yrd Mat Mat Mat Sto Fac Low Machines Accessed 15 | . . 2 3 4 6 . Terminals 11 | . . 2 2 3 4 . Fabricators . | . . . . . . . Repair Stations . | . . . . . . . Recycling Units . | . . . . . . . Scanalyzers 1 | . . . . . 1 . Garrison Access 3 | . . . 1 1 1 . Total Hacks 28 | . . 3 3 5 17 . Successful 14 | . . 1 1 4 8 . Failed 14 | . . 2 2 1 9 . Catastrophic 3 | . . . 1 . 2 . Database Lockouts . | . . . . . . . Manual 18 | . . 3 1 2 12 . Terminals 20 | . . 3 2 3 12 . Fabricators . | . . . . . . . Repair Stations . | . . . . . . . Recycling Units . | . . . . . . . Scanalyzers 4 | . . . . . 4 . Garrison Access 4 | . . . 1 2 1 . Terminal Hacks 2 | . . . . 2 . . Open Door 1 | . . . . 1 . . Recall Reinforcements 1 | . . . . 1 . . Fabricator Hacks . | . . . . . . . Repair Station Hacks . | . . . . . . . Recycling Unit Hacks . | . . . . . . . Scanalyzer 4 | . . . . . 4 . Retrieve Study 4 | . . . . . 4 . Garrison Access Hacks 3 | . . . 1 1 1 . Seal Access 3 | . . . 1 1 1 . Unauthorized Hacks 5 | . . 1 . 1 3 . Terminals 5 | . . 1 . 1 3 . Botnet 4 | . . 1 . 1 2 . Detonate 1 | . . . . . 1 . Fabricators . | . . . . . . . Repair Stations . | . . . . . . . Recycling Units . | . . . . . . . Scanalyzers . | . . . . . . . Garrison Access . | . . . . . . . Data Cores Recovered 1 | . . . . 1 . . Used . | . . . . . . . Hacking Detections 10 | . . 1 2 2 5 . Full Trace Events . | . . . . . . . Feedback Events . | . . . . . . . Feedback Blocked . | . . . . . . . Robot Schematics Acquired . | . . . . . . . Robots Built . | . . . . . . . Authchips . | . . . . . . . Time . | . . . . . . . Total Robot Build Rating . | . . . . . . . Part Schematics Acquired . | . . . . . . . Parts Built . | . . . . . . . Authchips . | . . . . . . . Time . | . . . . . . . Total Part Build Rating . | . . . . . . . Part Studies Acquired 4 | . . . . . 4 . Parts Repaired . | . . . . . . . Time . | . . . . . . . Parts Recycled . | . . . . . . . Recycled Matter . | . . . . . . . Retrieved Matter . | . . . . . . . Retrieved Components . | . . . . . . . Parts Scanalyzed . | . . . . . . . Part Schematics Acquired . | . . . . . . . Parts Damaged . | . . . . . . . Bothacking | -11 -10 -9 -8 -8 -7 -7 ------------ Run | Yrd Mat Mat Mat Sto Fac Low Used RIF Installer . | . . . . . . . Robots Hacked . | . . . . . . . Non-combat . | . . . . . . . Combat . | . . . . . . . Robot Hacks Applied . | . . . . . . . Relay Couplers Released 4 | . . . . . 4 . Programmers 4 | . . . . . 4 . Fabnet Peak Effective % . | . . . . . . . Robots Rewired . | . . . . . . . Allies Hacked 2 | . . . . . 2 . Hacks Repelled . | . . . . . . . Allies | -11 -10 -9 -8 -8 -7 -7 -------- Run | Yrd Mat Mat Mat Sto Fac Low Total Allies 10 | . . . . 10 . . Largest Group 10 | . . . . 10 10 . Highest-Rated Group 173 | . . . . 173 173 . Highest-Rated Ally 29 | . . . . 29 29 . Total Orders . | . . . . . . . Ally Attacks 100 | . . . . . 100 . Total Damage 1045 | . . . . . 1045 . Kills 13 | . . . . . 13 . Allies Corrupted . | . . . . . . . Allies Melted . | . . . . . . . Intel | -11 -10 -9 -8 -8 -7 -7 ------- Run | Yrd Mat Mat Mat Sto Fac Low Active Infowar (turns) 1098 | 21 50 . 1027 . . . Seismic 1098 | 21 50 . 1027 . . . Robot Analysis Total . | . . . . . . . Derelict Logs Recovered 1 | . . . . . . 1 Drone Launches . | . . . . . . . Drone Recoveries . | . . . . . . . Exploration | -11 -10 -9 -8 -8 -7 -7 ------------- Run | Yrd Mat Mat Mat Sto Fac Low Turns Passed 4792 | 118 165 629 1217 583 1189 891 Spaces Moved 2616 | 50 87 327 511 392 701 548 Core 26 | 18 . . 7 . 1 . Treads 941 | 32 87 327 303 . 192 . Legs . | . . . . . . . Wheels 1649 | . . . 201 392 508 548 Hover . | . . . . . . . Flight . | . . . . . . . Fastest Speed 50 | 50 160 160 115 115 111 140 Average Speed 154 | 162 160 160 189 121 143 153 Slowest Speed 800 | 250 160 160 700 130 800 155 Overloaded Moves . | . . . . . . . Propulsion Burnouts . | . . . . . . . Robots Hopped . | . . . . . . . Potential Cave-ins 2 | . . . . 2 . . Cave-ins Triggered . | . . . . . . . Exploration Rate (%) 34 | 4 23 43 40 53 20 59 Regions Visited 6 Branch Regions 2 Pre-discovered Areas . | . . . . . . . Known Exits Taken 1 | . . . . . 1 . Unknown Exits Taken 5 | 1 1 1 1 1 . . Scrap Searched 4 | . . . . . . 4 Spaces Dug 4 | . . . . 4 . . Terrain Destroyed 287 | . . 113 57 6 68 43 Melee 4 | . . . . 4 . . Projectile 18 | . . . 11 2 5 . AOE 265 | . . 113 46 . 63 43 Terrain Rammed . | . . . . . . . Walls Destroyed . | . . . . . . . Machines Disabled . | . . . . . . . Actions | -11 -10 -9 -8 -8 -7 -7 --------- Run | Yrd Mat Mat Mat Sto Fac Low Total 3000 | 67 106 369 627 462 798 571 Wait 83 | . 13 . 20 42 8 . Move 2610 | 49 86 326 510 391 700 548 Hop . | . . . . . . . Pick Up 52 | 3 3 6 17 5 14 4 Fast Attach 15 | 7 . 2 1 . 5 . Attach 30 | . . 2 10 1 14 3 Detach 1 | . . . . . 1 . Swap 12 | . 1 4 5 1 1 . Drop 19 | . . 2 5 3 9 . Fire 144 | 8 3 27 53 12 33 8 Melee 34 | . . . 6 7 13 8 Ram . | . . . . . . . Kick . | . . . . . . . Crush . | . . . . . . . Escape Stasis . | . . . . . . . Rewire . | . . . . . . . Trap . | . . . . . . . Miscellaneous . | . . . . . . . Route ------- -11/Scrapyard -10/Materials -9/Materials -8/Materials -8/Storage -7/Factory -7/Lower Caves History --------- Turn | Location | Event 16 | -11/Scrapyard | Discovered new exit (range 16) 119 | -11/Scrapyard | Entered Materials 241 | -10/Materials | Discovered new exit (range 11) 284 | -10/Materials | Entered another Materials area 284 | -9/Materials | Evolved 2 slots: Weapon x2 567 | -9/Materials | Build established: Gunner 810 | -9/Materials | Discovered new exit (range 15) 913 | -9/Materials | Entered another Materials area 913 | -8/Materials | Evolved 2 slots: Utility x2 1780 | -8/Materials | Lost 6 parts (4n1u1w) 2083 | -8/Materials | Discovered new exit (range 8) 2130 | -8/Materials | Entered Storage 2669 | -8/Storage | Assisted by bots powering up and referring to "LRC-V3" 2678 | -8/Storage | Discovered new exit (range 8) 2713 | -8/Storage | Entered Factory 2713 | -7/Factory | Accompanied by 10 allies 2713 | -7/Factory | Evolved 2 slots: Propulsion x1, Utility x1 2845 | -7/Factory | Found Powered Armor 2980 | -7/Factory | Build established: Commander-Gunner 3661 | -7/Factory | Cargo convoy interrupted 3669 | -7/Factory | P-60 Hacker assimilated allied Trooper 3b 3713 | -7/Factory | Lost 3 allies 3747 | -7/Factory | Lost 10 parts (1p3n2u4w) 3833 | -7/Factory | Discovered new exit (range 14) 3866 | -7/Factory | Core integrity fell below 50% 3898 | -7/Factory | Identified exit to Lower Caves 3902 | -7/Factory | Entered Lower Caves 3913 | -7/Lower Caves | Encountered a Warlord checkpoint 4399 | -7/Lower Caves | Build established: Mutant 4408 | -7/Lower Caves | Core integrity fell below 20% 4730 | -7/Lower Caves | Learned Factory garrison access intel 4788 | -7/Lower Caves | Attracted the attention of an 0b10 checkpoint 4793 | -7/Lower Caves | Destroyed by Y-54 Guardian with Gatling Laser Last Messages --------------- 04442_ Penetrated by Slug. 04445_ Hrd. Medium Armor Plating destroyed. 04445_ Targeting Computer destroyed. 04448_ The unstable cave ceiling collapses. 04448_ Penetrated by Slug. 04451_ H-55 Commando knocked back. 04454_ Penetrated by Slug. 04455_ H-55 Commando suffers critical hit (Smash). 04455_ Destroyed Carbon-fiber Leg. 04455_ H-55 Commando system corrupted by crushing effect. 04455_ H-55 Commando destroyed. 04527_ Acquired 10 matter. 04702_ Acquired Weapon Cycler. 04716_ System corrupted: Matter fused (-5). 04730_ Acquired derelict log, extracted data. Data stored: Factory garrison access intel. 04788_ Y-54 Guardian: "INTERCEPTING UNREGISTERED DERELICT." Map ----- +----------------------------------------------------+ | ?????????????????????????????????????????????????? | | ?????????????????????????????????????????????????? | | ?????????????????????????????????????????????????? | | ?????????????????????????????????????????????????? | | ?????????????????????????????????????????????????? | | ?????????????????????????????????????????????????? | | ?????????????????????????????????????????????????? | | ?????????????????????????? ??????????????????????? | | ????????????????????????? ????????????????????? | | ?????????????????????????# ????????????????????? | | ????????????????????????## ???????????????????? | | ???????????????????????? ???????????????????? | | ????????????????????????# ???????????????????? | | ?????????????????#?????## ???????????????????? | | ?????????????????# ???## ????????????????????? | | ?????????????????# ??# ????????????????????? | | ?????????????????# ### ????????????????????? | | ?????????????????# #????????????????????? | | ????????????????## ##???????????????????? | | ???????????????## ##??????????????????? | | ???????????????# ######?????????????? | | ???????????????? ##????????????? | | ????????????????# ????# #??##????????? | | ?????????????????# #### ### ### #????????? | | ?????????????????# #?## #????????? | | ???????????????# @ #??## #????????? | | ?????????? Y #???# ##????????? | | ?????????? #???# ##?????????? | | ??????????? #???# #??????????? | | ??????????? #???## #??????????? | | ???????????? #???## #####???????? | | ???????????? #######???# ## #???????? | | ???????????? ## ??????????## #???????? | | ????????????? ##?#????????????## ##???????? | | ????????????? ??????????????????## ###??????? | | ??????????????#?????????????#####??# #??????? | | ???????????????????????###### #### #??????? | | ????????????????#####??# ##??????? | | ?????????????#### #### ##??????? | | ???????????### ######## ###????? | | ???????????# ##????## ####?? | | ????????????# # ###???## ### | | ????????????## """" " "" # ###??## | | ????????????## """ " "" #???## | | ????????????# "" " " ##???# ### | | ????????????# "! """" ### #???# #?? | | ????????????# !"" "" #?## ##??# #?? | | ?????????#### " "" """" ##??## #??## #?? | | ????????## ! ##????# #???# #?? | | ???????## """ """" #?????# ##??? ### | +----------------------------------------------------+ Best States ------------- Heat Dissipation 34 Energy Generation 16 Energy Capacity 290 Matter Stores 300 Matter Capacity 300 Sight Range 16 Terrain Scan Density 10 Armor Coverage 600 Evasion (%) 40 Targeting Accuracy 5 Target Analysis 5 Recoil Reduction 3 Defensive Hacking 10 Item Schematics ----------------- None Robot Schematics ------------------ None Fabricated ------------ Nothing Repaired ---------- Nothing Studied --------- Med. Treads | -7/Factory | Hacked Lgt. Treads | -7/Factory | Hacked Com. Wheel | -7/Factory | Hacked Arm. Wheel | -7/Factory | Hacked Alien Tech Used ----------------- None Achievements -------------- None Challenges ------------ None Game ------ Seed InterceptModifiedForcewell Manual? 0 Play Time 00:33:14 Cumulative 100.6 hours Start 2026.06.24 @ 15:31:24 End 2026.06.24 @ 16:03:32 Sessions 1 Manual Loads 0 Difficulty Rogue Special Mode None Game No. 219 Rogue 219 Adventurer 0 Explorer 0 Win Type - Total 0 Types 0/0/0/0/0/0/0/0/0/0 Lore% 48 Gallery% 49 Achievement% 38 Wizard Run 0 Options --------- Layout 1 ASCII 0 Keyboard 1 Movement Arrows Keybinds 0 Fullscreen 2 Font 24/Smallcaps Map View 50x35 Zoom Use 0% Tactical HUD 1 Map Filters NONE Filters NONE Steam 1 RUN: 34bdd331-24fe-4f8c-87a6-e89f81ca5f53